[Event "Titled Tuesday Blitz September 21 2021"]
[White "Perez Ponsa, Federico"]
[Black "Tisaj, Domen"]
[WhiteFideId "117927"]
[BlackFideId "14628708"]
[WhiteElo "2672"]
[BlackElo "2272"]
[Result "1-0"]
[Round "06"]
[TimeControl "180+1"]
[Date "2021.09.21"]
[WhiteClock "0:01:00"]
[BlackClock "0:00:19"]

1. c4 {[%clk 0:02:55]}  g6 {[%clk 0:02:57]} 2. g3 {[%clk 0:02:55]}  c5 {[%clk 0:02:57]} 3. Bg2 {[%clk 0:02:55]}  Bg7 {[%clk 0:02:57]} 4. Nc3 {[%clk 0:02:55]}  Nc6 {[%clk 0:02:57]} 5. d3 {[%clk 0:02:56]}  e5 {[%clk 0:02:58]} 6. e3 {[%clk 0:02:51]}  Nge7 {[%clk 0:02:58]} 7. Nge2 {[%clk 0:02:51]}  O-O {[%clk 0:02:57]} 8. O-O {[%clk 0:02:52]}  d6 {[%clk 0:02:58]} 9. a3 {[%clk 0:02:51]}  Be6 {[%clk 0:02:58]} 10. Nd5 {[%clk 0:02:51]}  Qd7 {[%clk 0:02:53]} 11. Re1 {[%clk 0:02:51]}  Bh3 {[%clk 0:02:49]} 12. Bh1 {[%clk 0:02:51]}  Nxd5 {[%clk 0:02:46]} 13. cxd5 {[%clk 0:02:49]}  Ne7 {[%clk 0:02:47]} 14. Rb1 {[%clk 0:02:48]}  Rab8 {[%clk 0:02:44]} 15. b4 {[%clk 0:02:48]}  b6 {[%clk 0:02:45]} 16. Bb2 {[%clk 0:02:39]}  h5 {[%clk 0:02:44]} 17. Qd2 {[%clk 0:02:36]}  h4 {[%clk 0:02:44]} 18. f4 {[%clk 0:02:36]}  hxg3 {[%clk 0:02:41]} 19. hxg3 {[%clk 0:02:36]}  Nf5 {[%clk 0:02:32]} 20. Kf2 {[%clk 0:02:34]}  Nh6 {[%clk 0:02:28]} 21. Ng1 {[%clk 0:02:24]}  Bg4 {[%clk 0:02:19]} 22. Bg2 {[%clk 0:02:21]}  Bh5 {[%clk 0:02:15]} 23. Nf3 {[%clk 0:02:19]}  Rbe8 {[%clk 0:01:56]} 24. bxc5 {[%clk 0:02:16]}  bxc5 {[%clk 0:01:54]} 25. Bc3 {[%clk 0:02:15]}  Bg4 {[%clk 0:01:43]} 26. Rb2 {[%clk 0:02:13]}  exf4 {[%clk 0:01:34]} 27. gxf4 {[%clk 0:02:11]}  Nf5 {[%clk 0:01:25]} 28. Bxg7 {[%clk 0:02:08]}  Kxg7 {[%clk 0:01:17]} 29. Qc3+ {[%clk 0:02:08]}  Kg8 {[%clk 0:01:10]} 30. Rh1 {[%clk 0:02:05]}  Bh5 {[%clk 0:01:09]} 31. Rxh5 {[%clk 0:01:46]}  gxh5 {[%clk 0:01:05]} 32. Bh3 {[%clk 0:01:46]}  Qe7 {[%clk 0:00:57]} 33. Bxf5 {[%clk 0:01:43]}  Qxe3+ {[%clk 0:00:58]} 34. Kg3 {[%clk 0:01:42]}  h4+ {[%clk 0:00:53]} 35. Kg4 {[%clk 0:01:34]}  f6 {[%clk 0:00:46]} 36. Qd2 {[%clk 0:01:07]}  Qe7 {[%clk 0:00:24]} 37. Nxh4 {[%clk 0:01:03]}  Rf7 {[%clk 0:00:21]} 38. Be6 {[%clk 0:01:02]}  f5+ {[%clk 0:00:21]} 39. Nxf5 {[%clk 0:01:00]}  Kf8 {[%clk 0:00:19]} 1-0


[Site "https://www.chess.com"]

[Event "Titled Tuesday Blitz September 21 2021"]
[White "Quparadze, Giga"]
[Black "Maly, Alexey"]
[WhiteFideId "13602250"]
[BlackFideId "14103184"]
[WhiteElo "2658"]
[BlackElo "2250"]
[Result "1/2-1/2"]
[Round "06"]
[TimeControl "180+1"]
[Date "2021.09.21"]
[WhiteClock "0:02:04"]
[BlackClock "0:00:33"]

1. e4 {[%clk 0:03:00]}  c6 {[%clk 0:03:00]} 2. Nc3 {[%clk 0:03:01]}  d5 {[%clk 0:03:00]} 3. d4 {[%clk 0:03:02]}  dxe4 {[%clk 0:03:01]} 4. Nxe4 {[%clk 0:03:03]}  Bf5 {[%clk 0:03:01]} 5. Ng3 {[%clk 0:03:03]}  Bg6 {[%clk 0:03:02]} 6. Nf3 {[%clk 0:03:04]}  Nd7 {[%clk 0:03:02]} 7. h4 {[%clk 0:03:04]}  h6 {[%clk 0:03:02]} 8. h5 {[%clk 0:03:05]}  Bh7 {[%clk 0:03:03]} 9. Bd3 {[%clk 0:03:05]}  Bxd3 {[%clk 0:03:03]} 10. Qxd3 {[%clk 0:03:06]}  e6 {[%clk 0:03:03]} 11. Bf4 {[%clk 0:03:06]}  Ngf6 {[%clk 0:03:04]} 12. O-O-O {[%clk 0:03:07]}  Be7 {[%clk 0:03:04]} 13. Kb1 {[%clk 0:03:07]}  O-O {[%clk 0:03:04]} 14. Ne4 {[%clk 0:03:07]}  Nxe4 {[%clk 0:03:04]} 15. Qxe4 {[%clk 0:03:08]}  Nf6 {[%clk 0:03:05]} 16. Qe2 {[%clk 0:03:08]}  Qd5 {[%clk 0:03:04]} 17. Ne5 {[%clk 0:03:09]}  Qe4 {[%clk 0:03:04]} 18. Qxe4 {[%clk 0:03:09]}  Nxe4 {[%clk 0:03:03]} 19. Rhe1 {[%clk 0:03:10]}  Nf6 {[%clk 0:03:01]} 20. g4 {[%clk 0:03:10]}  Rad8 {[%clk 0:03:00]} 21. f3 {[%clk 0:03:10]}  Rfe8 {[%clk 0:02:56]} 22. Bc1 {[%clk 0:03:10]}  Nd7 {[%clk 0:02:54]} 23. c4 {[%clk 0:03:08]}  Nxe5 {[%clk 0:02:54]} 24. dxe5 {[%clk 0:03:08]}  Rxd1 {[%clk 0:02:54]} 25. Rxd1 {[%clk 0:03:09]}  Rd8 {[%clk 0:02:54]} 26. Rxd8+ {[%clk 0:03:09]}  Bxd8 {[%clk 0:02:55]} 27. Be3 {[%clk 0:03:10]}  a6 {[%clk 0:02:52]} 28. Kc2 {[%clk 0:03:09]}  Be7 {[%clk 0:02:50]} 29. Kd3 {[%clk 0:03:09]}  Kf8 {[%clk 0:02:48]} 30. Ke4 {[%clk 0:03:10]}  b5 {[%clk 0:02:29]} 31. cxb5 {[%clk 0:03:09]}  cxb5 {[%clk 0:02:27]} 32. f4 {[%clk 0:03:09]}  g6 {[%clk 0:02:25]} 33. f5 {[%clk 0:03:02]}  exf5+ {[%clk 0:02:23]} 34. gxf5 {[%clk 0:03:03]}  gxh5 {[%clk 0:02:20]} 35. f6 {[%clk 0:03:03]}  Bb4 {[%clk 0:02:18]} 36. a3 {[%clk 0:02:59]}  Ba5 {[%clk 0:02:14]} 37. Kf5 {[%clk 0:02:59]}  h4 {[%clk 0:02:11]} 38. e6 {[%clk 0:02:59]}  h3 {[%clk 0:02:05]} 39. Bxh6+ {[%clk 0:02:57]}  Ke8 {[%clk 0:02:05]} 40. Bf4 {[%clk 0:02:58]}  Bb6 {[%clk 0:02:00]} 41. Bh2 {[%clk 0:02:57]}  Be3 {[%clk 0:01:56]} 42. b3 {[%clk 0:02:57]}  a5 {[%clk 0:01:56]} 43. a4 {[%clk 0:02:57]}  bxa4 {[%clk 0:01:54]} 44. bxa4 {[%clk 0:02:58]}  Bd4 {[%clk 0:01:54]} 45. Kg5 {[%clk 0:02:50]}  fxe6 {[%clk 0:01:49]} 46. Kg6 {[%clk 0:02:50]}  Kd7 {[%clk 0:01:47]} 47. f7 {[%clk 0:02:47]}  Bc5 {[%clk 0:01:46]} 48. Be5 {[%clk 0:02:45]}  Bf8 {[%clk 0:01:43]} 49. Kf6 {[%clk 0:02:44]}  Be7+ {[%clk 0:01:41]} 50. Kg6 {[%clk 0:02:29]}  Kc6 {[%clk 0:01:38]} 51. Kh5 {[%clk 0:02:30]}  Kd5 {[%clk 0:01:36]} 52. Bg3 {[%clk 0:02:30]}  Kc4 {[%clk 0:01:33]} 53. Kg4 {[%clk 0:02:27]}  Kb4 {[%clk 0:01:34]} 54. Kxh3 {[%clk 0:02:27]}  Kxa4 {[%clk 0:01:33]} 55. Be1 {[%clk 0:02:27]}  Kb5 {[%clk 0:01:28]} 56. Kg4 {[%clk 0:02:27]}  a4 {[%clk 0:01:25]} 57. Kf4 {[%clk 0:02:27]}  a3 {[%clk 0:01:11]} 58. Bc3 {[%clk 0:02:26]}  Kc4 {[%clk 0:01:05]} 59. Bf6 {[%clk 0:02:24]}  Bd6+ {[%clk 0:01:03]} 60. Ke4 {[%clk 0:02:24]}  a2 {[%clk 0:01:00]} 61. Be5 {[%clk 0:02:22]}  Bxe5 {[%clk 0:00:55]} 62. f8=Q {[%clk 0:02:22]}  a1=Q {[%clk 0:00:55]} 63. Qc8+ {[%clk 0:02:22]}  Kb5 {[%clk 0:00:51]} 64. Qb7+ {[%clk 0:02:17]}  Kc5 {[%clk 0:00:49]} 65. Qc8+ {[%clk 0:02:16]}  Kb5 {[%clk 0:00:43]} 66. Qe8+ {[%clk 0:02:10]}  Kb4 {[%clk 0:00:42]} 67. Qe7+ {[%clk 0:02:08]}  Ka4 {[%clk 0:00:38]} 68. Qd7+ {[%clk 0:02:04]}  Ka3 {[%clk 0:00:36]} 69. Qe7+ {[%clk 0:02:04]}  Ka2 {[%clk 0:00:35]} 70. Qxe6+ {[%clk 0:02:03]}  Kb1 {[%clk 0:00:34]} 71. Qxe5 {[%clk 0:02:03]}  Qxe5+ {[%clk 0:00:33]} 72. Kxe5 {[%clk 0:02:04]} 1/2-1/2


[Site "https://www.chess.com"]

[Event "Titled Tuesday Blitz September 21 2021"]
[White "Rojas Alarcon, Julian Antonio"]
[Black "Djokic, Mihailo"]
[WhiteFideId "5107407"]
[BlackFideId "976440"]
[WhiteElo "2333"]
[BlackElo "2008"]
[Result "1-0"]
[Round "06"]
[TimeControl "180+1"]
[Date "2021.09.21"]
[WhiteClock "0:01:22"]
[BlackClock "0:00:04"]

1. c4 {[%clk 0:03:00]}  e5 {[%clk 0:02:59]} 2. Nc3 {[%clk 0:03:00]}  Nc6 {[%clk 0:03:00]} 3. g3 {[%clk 0:03:00]}  Bc5 {[%clk 0:03:00]} 4. Bg2 {[%clk 0:03:01]}  d6 {[%clk 0:03:01]} 5. e3 {[%clk 0:03:01]}  Bf5 {[%clk 0:03:02]} 6. d3 {[%clk 0:02:57]}  a6 {[%clk 0:03:00]} 7. a3 {[%clk 0:02:56]}  Ba7 {[%clk 0:03:00]} 8. Nge2 {[%clk 0:02:55]}  h5 {[%clk 0:03:00]} 9. h3 {[%clk 0:02:56]}  Qd7 {[%clk 0:02:59]} 10. Nd5 {[%clk 0:02:55]}  Nge7 {[%clk 0:02:59]} 11. Nec3 {[%clk 0:02:53]}  Rb8 {[%clk 0:02:44]} 12. b4 {[%clk 0:02:30]}  Nxd5 {[%clk 0:02:42]} 13. Nxd5 {[%clk 0:02:30]}  Ne7 {[%clk 0:02:42]} 14. Nc3 {[%clk 0:02:24]}  c6 {[%clk 0:02:41]} 15. Bb2 {[%clk 0:02:18]}  d5 {[%clk 0:02:35]} 16. cxd5 {[%clk 0:02:16]}  cxd5 {[%clk 0:02:35]} 17. e4 {[%clk 0:02:08]}  Be6 {[%clk 0:02:22]} 18. Rc1 {[%clk 0:01:59]}  b5 {[%clk 0:01:56]} 19. exd5 {[%clk 0:01:54]}  Nxd5 {[%clk 0:01:54]} 20. Ne4 {[%clk 0:01:54]}  f6 {[%clk 0:01:46]} 21. d4 {[%clk 0:01:54]}  exd4 {[%clk 0:01:09]} 22. Bxd4 {[%clk 0:01:55]}  Nf4 {[%clk 0:01:06]} 23. gxf4 {[%clk 0:01:47]}  Bxd4 {[%clk 0:01:03]} 24. O-O {[%clk 0:01:39]}  Bb2 {[%clk 0:00:48]} 25. Qxd7+ {[%clk 0:01:37]}  Bxd7 {[%clk 0:00:44]} 26. Rb1 {[%clk 0:01:37]}  Bd4 {[%clk 0:00:36]} 27. Rbd1 {[%clk 0:01:36]}  Bb6 {[%clk 0:00:32]} 28. Rfe1 {[%clk 0:01:35]}  Kd8 {[%clk 0:00:20]} 29. Nc5 {[%clk 0:01:31]}  Bxc5 {[%clk 0:00:20]} 30. bxc5 {[%clk 0:01:32]}  Kc8 {[%clk 0:00:14]} 31. Re7 {[%clk 0:01:32]}  Rd8 {[%clk 0:00:12]} 32. Rxg7 {[%clk 0:01:30]}  b4 {[%clk 0:00:07]} 33. c6 {[%clk 0:01:23]}  Bf5 {[%clk 0:00:04]} 34. Rxd8+ {[%clk 0:01:22]}  Kxd8 {[%clk 0:00:04]} 35. c7+ {[%clk 0:01:22]} 1-0


[Site "https://www.chess.com"]

[Event "Titled Tuesday Blitz September 21 2021"]
[White "Rozhkov, Viacheslav"]
[Black "Harshavardhan G B"]
[WhiteFideId "4181484"]
[BlackFideId "25059009"]
[WhiteElo "2324"]
[BlackElo "1825"]
[Result "0-1"]
[Round "06"]
[TimeControl "180+1"]
[Date "2021.09.21"]
[WhiteClock "0:00:10"]
[BlackClock "0:00:17"]

1. e4 {[%clk 0:03:00]}  e5 {[%clk 0:02:56]} 2. Nf3 {[%clk 0:03:00]}  Nc6 {[%clk 0:02:56]} 3. d4 {[%clk 0:03:00]}  exd4 {[%clk 0:02:56]} 4. Bc4 {[%clk 0:03:00]}  Nf6 {[%clk 0:02:55]} 5. e5 {[%clk 0:03:00]}  d5 {[%clk 0:02:55]} 6. Bb5 {[%clk 0:03:00]}  Ne4 {[%clk 0:02:51]} 7. Nxd4 {[%clk 0:03:00]}  Bd7 {[%clk 0:02:51]} 8. Bxc6 {[%clk 0:03:00]}  bxc6 {[%clk 0:02:50]} 9. O-O {[%clk 0:03:00]}  Bc5 {[%clk 0:02:49]} 10. f3 {[%clk 0:03:00]}  Ng5 {[%clk 0:02:49]} 11. f4 {[%clk 0:03:01]}  Ne4 {[%clk 0:02:48]} 12. Be3 {[%clk 0:03:01]}  Bb6 {[%clk 0:02:48]} 13. Nd2 {[%clk 0:02:59]}  c5 {[%clk 0:02:43]} 14. N4f3 {[%clk 0:02:59]}  Nxd2 {[%clk 0:02:41]} 15. Qxd2 {[%clk 0:02:59]}  d4 {[%clk 0:02:41]} 16. Bf2 {[%clk 0:02:59]}  Bc6 {[%clk 0:02:39]} 17. c4 {[%clk 0:03:00]}  Qd7 {[%clk 0:02:33]} 18. Bh4 {[%clk 0:02:59]}  h6 {[%clk 0:02:31]} 19. e6 {[%clk 0:02:51]}  fxe6 {[%clk 0:02:24]} 20. Ne5 {[%clk 0:02:51]}  Qd6 {[%clk 0:02:24]} 21. Ng6 {[%clk 0:02:51]}  Rg8 {[%clk 0:02:19]} 22. f5 {[%clk 0:02:30]}  exf5 {[%clk 0:02:04]} 23. Ne7 {[%clk 0:01:56]}  g5 {[%clk 0:01:17]} 24. Nxg8 {[%clk 0:01:17]}  O-O-O {[%clk 0:01:14]} 25. Nxh6 {[%clk 0:00:37]}  gxh4 {[%clk 0:00:58]} 26. Nxf5 {[%clk 0:00:36]}  Qe6 {[%clk 0:00:57]} 27. Rae1 {[%clk 0:00:35]}  Qxc4 {[%clk 0:00:54]} 28. Ne7+ {[%clk 0:00:34]}  Kb7 {[%clk 0:00:51]} 29. Nxc6 {[%clk 0:00:34]}  Kxc6 {[%clk 0:00:52]} 30. Qh6+ {[%clk 0:00:25]}  Rd6 {[%clk 0:00:49]} 31. Qxh4 {[%clk 0:00:26]}  Qxa2 {[%clk 0:00:46]} 32. Qe4+ {[%clk 0:00:25]}  Kb5 {[%clk 0:00:35]} 33. h4 {[%clk 0:00:17]}  d3 {[%clk 0:00:33]} 34. Ra1 {[%clk 0:00:15]}  Qc4 {[%clk 0:00:25]} 35. Qxc4+ {[%clk 0:00:14]}  Kxc4 {[%clk 0:00:26]} 36. g4 {[%clk 0:00:13]}  Kb3 {[%clk 0:00:25]} 37. g5 {[%clk 0:00:13]}  c4+ {[%clk 0:00:24]} 38. Kg2 {[%clk 0:00:13]}  Kxb2 {[%clk 0:00:24]} 39. Kg3 {[%clk 0:00:12]}  d2 {[%clk 0:00:23]} 40. Rfb1+ {[%clk 0:00:12]}  Kc2 {[%clk 0:00:21]} 41. h5 {[%clk 0:00:12]}  Bd4 {[%clk 0:00:19]} 42. g6 {[%clk 0:00:07]}  Bxa1 {[%clk 0:00:19]} 43. Rxa1 {[%clk 0:00:08]}  Kb2 {[%clk 0:00:18]} 44. Rd1 {[%clk 0:00:07]}  c3 {[%clk 0:00:18]} 45. g7 {[%clk 0:00:07]}  Rd8 {[%clk 0:00:16]} 46. h6 {[%clk 0:00:08]}  c2 {[%clk 0:00:17]} 47. Rxd2 {[%clk 0:00:08]}  Rxd2 {[%clk 0:00:17]} 48. g8=Q {[%clk 0:00:09]}  c1=Q {[%clk 0:00:18]} 49. Qg7+ {[%clk 0:00:09]}  Qc3+ {[%clk 0:00:16]} 50. Qxc3+ {[%clk 0:00:09]}  Kxc3 {[%clk 0:00:16]} 51. h7 {[%clk 0:00:10]}  Rd8 {[%clk 0:00:17]} 0-1


[Site "https://www.chess.com"]

[Event "Titled Tuesday Blitz September 21 2021"]
[White "Savchenko, Boris"]
[Black "Krysa, Leandro"]
[WhiteFideId "4147332"]
[BlackFideId "116807"]
[WhiteElo "2543"]
[BlackElo "2490"]
[Result "1-0"]
[Round "06"]
[TimeControl "180+1"]
[Date "2021.09.21"]
[WhiteClock "0:01:06"]
[BlackClock "0:00:05"]

1. e4 {[%clk 0:03:00]}  c5 {[%clk 0:02:59]} 2. Nf3 {[%clk 0:03:00]}  Nc6 {[%clk 0:02:59]} 3. Nc3 {[%clk 0:03:00]}  g6 {[%clk 0:02:59]} 4. d4 {[%clk 0:02:59]}  cxd4 {[%clk 0:03:00]} 5. Nxd4 {[%clk 0:03:00]}  Bg7 {[%clk 0:03:00]} 6. Be3 {[%clk 0:03:01]}  Nf6 {[%clk 0:03:01]} 7. Bc4 {[%clk 0:03:00]}  Qa5 {[%clk 0:03:01]} 8. O-O {[%clk 0:02:55]}  O-O {[%clk 0:03:00]} 9. h3 {[%clk 0:02:48]}  d6 {[%clk 0:03:00]} 10. Re1 {[%clk 0:02:35]}  Bd7 {[%clk 0:02:40]} 11. Bb3 {[%clk 0:02:33]}  Rac8 {[%clk 0:02:32]} 12. Qe2 {[%clk 0:02:32]}  Nxd4 {[%clk 0:02:25]} 13. Bxd4 {[%clk 0:02:32]}  Bc6 {[%clk 0:02:25]} 14. Rad1 {[%clk 0:02:29]}  Rfe8 {[%clk 0:02:25]} 15. f4 {[%clk 0:02:26]}  Nd7 {[%clk 0:02:23]} 16. Bxg7 {[%clk 0:02:18]}  Kxg7 {[%clk 0:02:23]} 17. Bd5 {[%clk 0:02:03]}  Qb6+ {[%clk 0:02:19]} 18. Qf2 {[%clk 0:02:03]}  Qxb2 {[%clk 0:02:15]} 19. Rd3 {[%clk 0:01:56]}  Qb6 {[%clk 0:01:55]} 20. Rde3 {[%clk 0:01:44]}  e6 {[%clk 0:01:51]} 21. Bb3 {[%clk 0:01:43]}  Nf6 {[%clk 0:01:46]} 22. g4 {[%clk 0:01:39]}  a5 {[%clk 0:01:39]} 23. a4 {[%clk 0:01:32]}  Qc5 {[%clk 0:01:14]} 24. Rd3 {[%clk 0:01:29]}  Qxf2+ {[%clk 0:01:03]} 25. Kxf2 {[%clk 0:01:30]}  Red8 {[%clk 0:01:01]} 26. g5 {[%clk 0:01:28]}  Ne8 {[%clk 0:00:54]} 27. Red1 {[%clk 0:01:28]}  Kf8 {[%clk 0:00:52]} 28. h4 {[%clk 0:01:28]}  Ke7 {[%clk 0:00:52]} 29. f5 {[%clk 0:01:23]}  exf5 {[%clk 0:00:36]} 30. exf5 {[%clk 0:01:24]}  gxf5 {[%clk 0:00:37]} 31. Nd5+ {[%clk 0:01:13]}  Bxd5 {[%clk 0:00:35]} 32. Rxd5 {[%clk 0:01:14]}  Rc5 {[%clk 0:00:32]} 33. Rxc5 {[%clk 0:01:14]}  dxc5 {[%clk 0:00:33]} 34. Rxd8 {[%clk 0:01:14]}  Kxd8 {[%clk 0:00:33]} 35. Bxf7 {[%clk 0:01:15]}  Nd6 {[%clk 0:00:30]} 36. Bg8 {[%clk 0:01:14]}  b5 {[%clk 0:00:28]} 37. axb5 {[%clk 0:01:14]}  a4 {[%clk 0:00:26]} 38. Ke3 {[%clk 0:01:14]}  a3 {[%clk 0:00:26]} 39. Kd2 {[%clk 0:01:14]}  Nxb5 {[%clk 0:00:18]} 40. h5 {[%clk 0:01:11]}  Ke7 {[%clk 0:00:15]} 41. Kc1 {[%clk 0:01:11]}  f4 {[%clk 0:00:14]} 42. Bxh7 {[%clk 0:01:11]}  Nd4 {[%clk 0:00:09]} 43. h6 {[%clk 0:01:09]}  Ne6 {[%clk 0:00:07]} 44. g6 {[%clk 0:01:07]}  f3 {[%clk 0:00:07]} 45. g7 {[%clk 0:01:06]}  f2 {[%clk 0:00:07]} 46. Bd3 {[%clk 0:01:06]}  Kf7 {[%clk 0:00:05]} 47. Bc4 {[%clk 0:01:06]} 1-0


[Site "https://www.chess.com"]

[Event "Titled Tuesday Blitz September 21 2021"]
[White "Seemann, Jakub"]
[Black "Mirzoev, Azer"]
[WhiteFideId "21874697"]
[BlackFideId "13400304"]
[WhiteElo "1849"]
[BlackElo "2525"]
[Result "0-1"]
[Round "06"]
[TimeControl "180+1"]
[Date "2021.09.21"]
[WhiteClock "0:00:04"]
[BlackClock "0:00:11"]

1. e4 {[%clk 0:03:00]}  c5 {[%clk 0:02:58]} 2. Nf3 {[%clk 0:03:00]}  d6 {[%clk 0:02:59]} 3. d4 {[%clk 0:03:00]}  cxd4 {[%clk 0:02:59]} 4. Nxd4 {[%clk 0:03:00]}  Nf6 {[%clk 0:02:59]} 5. Nc3 {[%clk 0:03:01]}  a6 {[%clk 0:03:00]} 6. Rg1 {[%clk 0:03:01]}  b5 {[%clk 0:03:01]} 7. g4 {[%clk 0:02:58]}  Bb7 {[%clk 0:03:01]} 8. g5 {[%clk 0:02:58]}  Nxe4 {[%clk 0:02:56]} 9. Nxe4 {[%clk 0:02:58]}  Bxe4 {[%clk 0:02:56]} 10. a4 {[%clk 0:02:59]}  b4 {[%clk 0:02:54]} 11. Qe2 {[%clk 0:02:57]}  Bb7 {[%clk 0:02:53]} 12. b3 {[%clk 0:02:50]}  Nc6 {[%clk 0:02:47]} 13. Nf5 {[%clk 0:02:48]}  g6 {[%clk 0:02:31]} 14. Bb2 {[%clk 0:02:47]}  e5 {[%clk 0:02:31]} 15. Ne3 {[%clk 0:02:29]}  Bg7 {[%clk 0:02:26]} 16. O-O-O {[%clk 0:02:27]}  O-O {[%clk 0:02:26]} 17. Nd5 {[%clk 0:02:24]}  Nd4 {[%clk 0:02:26]} 18. Bxd4 {[%clk 0:02:23]}  exd4 {[%clk 0:02:26]} 19. Nf4 {[%clk 0:02:20]}  Re8 {[%clk 0:02:25]} 20. Qg4 {[%clk 0:02:14]}  Be4 {[%clk 0:02:15]} 21. Bd3 {[%clk 0:02:12]}  d5 {[%clk 0:02:13]} 22. h4 {[%clk 0:02:10]}  Rc8 {[%clk 0:02:07]} 23. Kb1 {[%clk 0:01:55]}  Qc7 {[%clk 0:02:06]} 24. Rc1 {[%clk 0:01:54]}  a5 {[%clk 0:01:42]} 25. h5 {[%clk 0:01:48]}  Rcd8 {[%clk 0:01:27]} 26. hxg6 {[%clk 0:01:46]}  hxg6 {[%clk 0:01:27]} 27. f3 {[%clk 0:01:42]}  Bxd3 {[%clk 0:01:24]} 28. Nxd3 {[%clk 0:01:43]}  Re3 {[%clk 0:01:23]} 29. Rh1 {[%clk 0:01:41]}  Qc3 {[%clk 0:01:20]} 30. Rcd1 {[%clk 0:01:32]}  Re2 {[%clk 0:01:19]} 31. Rc1 {[%clk 0:01:21]}  Rxc2 {[%clk 0:01:13]} 32. Rxc2 {[%clk 0:01:20]}  Qxd3 {[%clk 0:01:14]} 33. Kb2 {[%clk 0:01:09]}  Qa6 {[%clk 0:01:06]} 34. Rch2 {[%clk 0:01:07]}  d3+ {[%clk 0:01:04]} 35. Ka2 {[%clk 0:01:07]}  Rc8 {[%clk 0:00:42]} 36. Qd7 {[%clk 0:00:43]}  Qe6 {[%clk 0:00:35]} 37. Qxe6 {[%clk 0:00:33]}  fxe6 {[%clk 0:00:35]} 38. Rd1 {[%clk 0:00:32]}  Rc3 {[%clk 0:00:27]} 39. Rhd2 {[%clk 0:00:31]}  Kf7 {[%clk 0:00:27]} 40. Rxd3 {[%clk 0:00:31]}  Rc2+ {[%clk 0:00:28]} 41. Kb1 {[%clk 0:00:29]}  Rb2+ {[%clk 0:00:28]} 42. Kc1 {[%clk 0:00:29]}  Rf2 {[%clk 0:00:28]} 43. R1d2 {[%clk 0:00:25]}  Rf1+ {[%clk 0:00:28]} 44. Kc2 {[%clk 0:00:23]}  Bc3 {[%clk 0:00:25]} 45. Rh2 {[%clk 0:00:18]}  Ke7 {[%clk 0:00:20]} 46. Rh7+ {[%clk 0:00:16]}  Kd6 {[%clk 0:00:20]} 47. Ra7 {[%clk 0:00:16]}  Rf2+ {[%clk 0:00:20]} 48. Kc1 {[%clk 0:00:13]}  Rb2 {[%clk 0:00:19]} 49. Ra6+ {[%clk 0:00:12]}  Ke5 {[%clk 0:00:19]} 50. Re3+ {[%clk 0:00:12]}  Kf5 {[%clk 0:00:19]} 51. Rexe6 {[%clk 0:00:11]}  Kxg5 {[%clk 0:00:17]} 52. Rxg6+ {[%clk 0:00:11]}  Kf4 {[%clk 0:00:17]} 53. Rxa5 {[%clk 0:00:10]}  d4 {[%clk 0:00:17]} 54. Rf6+ {[%clk 0:00:09]}  Ke3 {[%clk 0:00:17]} 55. f4 {[%clk 0:00:07]}  Ra2 {[%clk 0:00:16]} 56. Rh6 {[%clk 0:00:04]}  Ra1+ {[%clk 0:00:11]} 57. Kc2 {[%clk 0:00:04]}  d3# {[%clk 0:00:11]} 0-1


[Site "https://www.chess.com"]

[Event "Titled Tuesday Blitz September 21 2021"]
[White "Silva, Miguel Antonio Neto"]
[Black "Petriashvili, Nikoloz"]
[WhiteFideId "1911929"]
[BlackFideId "13611216"]
[WhiteElo "2283"]
[BlackElo "2430"]
[Result "0-1"]
[Round "06"]
[TimeControl "180+1"]
[Date "2021.09.21"]
[WhiteClock "0:00:24"]
[BlackClock "0:02:06"]

1. e4 {[%clk 0:03:00]}  c5 {[%clk 0:02:59]} 2. Nf3 {[%clk 0:02:58]}  Nc6 {[%clk 0:02:59]} 3. d4 {[%clk 0:02:58]}  cxd4 {[%clk 0:03:00]} 4. Nxd4 {[%clk 0:02:58]}  Nf6 {[%clk 0:03:01]} 5. Nc3 {[%clk 0:02:58]}  e5 {[%clk 0:03:01]} 6. Ndb5 {[%clk 0:02:57]}  d6 {[%clk 0:03:01]} 7. Nd5 {[%clk 0:02:55]}  Nxd5 {[%clk 0:03:01]} 8. exd5 {[%clk 0:02:56]}  Nb8 {[%clk 0:03:01]} 9. c4 {[%clk 0:02:57]}  Be7 {[%clk 0:03:02]} 10. Qa4 {[%clk 0:02:56]}  O-O {[%clk 0:03:01]} 11. Be2 {[%clk 0:02:50]}  Bd7 {[%clk 0:03:01]} 12. Qb4 {[%clk 0:02:44]}  Na6 {[%clk 0:03:01]} 13. Qb3 {[%clk 0:02:42]}  Nc5 {[%clk 0:03:01]} 14. Qb4 {[%clk 0:02:40]}  a5 {[%clk 0:03:01]} 15. Qa3 {[%clk 0:02:30]}  Bxb5 {[%clk 0:03:00]} 16. cxb5 {[%clk 0:02:29]}  a4 {[%clk 0:02:56]} 17. Be3 {[%clk 0:02:26]}  Qa5+ {[%clk 0:02:56]} 18. Qc3 {[%clk 0:02:23]}  Qxc3+ {[%clk 0:02:56]} 19. bxc3 {[%clk 0:02:23]}  Rfc8 {[%clk 0:02:56]} 20. f3 {[%clk 0:02:12]}  f5 {[%clk 0:02:51]} 21. Kd2 {[%clk 0:01:57]}  Bd8 {[%clk 0:02:49]} 22. Rhc1 {[%clk 0:01:48]}  Bb6 {[%clk 0:02:48]} 23. Rab1 {[%clk 0:01:41]}  Nd7 {[%clk 0:02:47]} 24. Bg5 {[%clk 0:01:36]}  Kf7 {[%clk 0:02:45]} 25. Bd3 {[%clk 0:01:33]}  h6 {[%clk 0:02:40]} 26. Bh4 {[%clk 0:01:28]}  g6 {[%clk 0:02:40]} 27. g4 {[%clk 0:01:27]}  e4 {[%clk 0:02:39]} 28. fxe4 {[%clk 0:01:25]}  g5 {[%clk 0:02:40]} 29. Bg3 {[%clk 0:01:21]}  f4 {[%clk 0:02:40]} 30. Be1 {[%clk 0:01:20]}  Be3+ {[%clk 0:02:40]} 31. Ke2 {[%clk 0:01:18]}  Bxc1 {[%clk 0:02:40]} 32. Rxc1 {[%clk 0:01:19]}  Ne5 {[%clk 0:02:40]} 33. h3 {[%clk 0:01:15]}  a3 {[%clk 0:02:40]} 34. Bc2 {[%clk 0:01:11]}  Rc4 {[%clk 0:02:38]} 35. Rb1 {[%clk 0:01:09]}  Nd7 {[%clk 0:02:28]} 36. Bd3 {[%clk 0:01:01]}  Rc7 {[%clk 0:02:28]} 37. h4 {[%clk 0:00:54]}  Nc5 {[%clk 0:02:26]} 38. Bc2 {[%clk 0:00:54]}  Re7 {[%clk 0:02:22]} 39. Kf3 {[%clk 0:00:53]}  Nd7 {[%clk 0:02:21]} 40. hxg5 {[%clk 0:00:48]}  hxg5 {[%clk 0:02:22]} 41. Bf2 {[%clk 0:00:40]}  Ne5+ {[%clk 0:02:22]} 42. Ke2 {[%clk 0:00:40]}  Nxg4 {[%clk 0:02:23]} 43. Bd4 {[%clk 0:00:40]}  Ne5 {[%clk 0:02:23]} 44. Rg1 {[%clk 0:00:40]}  Kg6 {[%clk 0:02:23]} 45. c4 {[%clk 0:00:34]}  Rh8 {[%clk 0:02:23]} 46. Kd1 {[%clk 0:00:32]}  Rh2 {[%clk 0:02:12]} 47. c5 {[%clk 0:00:31]}  dxc5 {[%clk 0:02:12]} 48. Bxc5 {[%clk 0:00:31]}  Rc7 {[%clk 0:02:12]} 49. Bd6 {[%clk 0:00:32]}  Rcxc2 {[%clk 0:02:12]} 50. Bxe5 {[%clk 0:00:32]}  Rhd2+ {[%clk 0:02:10]} 51. Ke1 {[%clk 0:00:32]}  Rh2 {[%clk 0:02:10]} 52. Bxf4 {[%clk 0:00:29]}  Rxa2 {[%clk 0:02:07]} 53. Bc1 {[%clk 0:00:25]}  Ra1 {[%clk 0:02:05]} 54. Kd1 {[%clk 0:00:25]}  Rxc1+ {[%clk 0:02:05]} 55. Kxc1 {[%clk 0:00:24]}  a2 {[%clk 0:02:06]} 0-1


[Site "https://www.chess.com"]